bitfinex/quotes_BTCUSD_20250127
["timestamp","ask_amount","ask_price","bid_price","bid_amount"]
[1737939800481,0.03421714,102080.0,102070.0,2.27571575]
[1737939800712,0.03421714,102080.0,102070.0,1.96220933]
[1737939800930,0.03421714,102080.0,102070.0,2.10916633]
[1737939801647,0.03435854,102080.0,102070.0,2.10916633]
[1737939803293,0.03435854,102080.0,102070.0,1.71620094]
[1737939803505,0.03435854,102080.0,102070.0,1.69620094]
[1737939803967,0.03435854,102080.0,102070.0,1.71620094]
[1737939804144,0.03435854,102080.0,102070.0,1.97050523]
[1737939804603,0.03435854,102080.0,102070.0,2.05200523]
[1737939804814,0.03435854,102080.0,102070.0,2.14935252]
[1737939805016,0.03435854,102080.0,102070.0,2.31590194]
[1737939805653,0.03435854,102080.0,102070.0,2.29990194]
[1737939805862,0.03435854,102080.0,102070.0,2.14635252]
[1737939806286,0.03435854,102080.0,102070.0,2.14335252]
[1737939806515,0.03435854,102080.0,102070.0,2.14935252]
[1737939806947,0.03435854,102080.0,102070.0,2.12935252]
[1737939807151,0.03435854,102080.0,102070.0,2.31590194]
[1737939807358,0.03435854,102080.0,102070.0,2.29590194]
[1737939807573,0.03435854,102080.0,102070.0,2.31590194]
[1737939811226,0.03435854,102080.0,102070.0,2.33890194]
[1737939811887,0.03435854,102080.0,102070.0,2.31590194]
[1737939813201,0.03435854,102080.0,102070.0,2.33890194]
[1737939813782,0.03435854,102080.0,102070.0,2.35890194]
[1737939814028,0.03435854,102080.0,102070.0,2.33890194]
[1737939814246,0.03435854,102080.0,102070.0,2.31890194]
[1737939814636,0.03435854,102080.0,102070.0,2.31590194]
[1737939814990,0.03435854,102080.0,102070.0,2.13935252]
[1737939815206,0.03435854,102080.0,102070.0,2.31590194]
[1737939815618,0.03435854,102080.0,102070.0,2.14935252]
[1737939816046,0.03435854,102080.0,102070.0,1.88504823]
[1737939816251,0.03435854,102080.0,102070.0,2.05200523]
[1737939817348,0.03435854,102080.0,102070.0,2.04600523]
[1737939817705,0.03435854,102080.0,102070.0,2.04900523]
[1737939818912,0.03435854,102080.0,102070.0,2.21555465]
[1737939819125,0.03435854,102080.0,102070.0,2.31290194]
[1737939820513,0.03430474,102080.0,102070.0,2.29290194]
[1737939820687,0.03430474,102080.0,102070.0,2.31290194]
[1737939823320,0.03430474,102080.0,102070.0,2.35590194]
[1737939823524,0.03430474,102080.0,102070.0,2.33590194]
[1737939823948,0.03430474,102080.0,102070.0,2.35590194]
[1737939824155,0.0001415,102090.0,102080.0,0.79530741]
[1737939824367,0.0001415,102090.0,102080.0,2.1453832]
[1737939825695,0.0001415,102090.0,102080.0,2.1683832]
[1737939826322,0.0001415,102090.0,102080.0,2.19875738]
[1737939826458,0.0001415,102090.0,102080.0,2.5102268]
[1737939827074,0.0001415,102090.0,102080.0,2.33267738]
[1737939827316,0.0001415,102090.0,102080.0,2.34367738]
[1737939827625,0.0001415,102090.0,102080.0,2.30967738]
[1737939827814,0.0001415,102090.0,102080.0,2.30575738]
[1737939828366,0.0186815,102090.0,102080.0,2.30575738]
[1737939829540,0.0001415,102100.0,102090.0,0.306929]
[1737939829787,0.00028971,102100.0,102090.0,2.10199965]
[1737939830207,0.00028971,102100.0,102090.0,2.12499965]
[1737939830872,0.00028971,102100.0,102090.0,2.13299965]
[1737939831086,0.00028971,102100.0,102090.0,2.10999965]
[1737939835158,0.01882971,102100.0,102090.0,2.10999965]
[1737939835568,0.01882971,102100.0,102090.0,1.92345023]
[1737939835786,0.01882971,102100.0,102090.0,1.94345023]
[1737939836399,0.01882971,102100.0,102090.0,2.10999965]
[1737939836729,0.01882971,102100.0,102090.0,2.05403262]
[1737939837148,0.01882971,102100.0,102090.0,2.04603262]
[1737939837356,0.01882971,102100.0,102090.0,1.93545023]
[1737939837564,0.01882971,102100.0,102090.0,1.94045023]
[1737939838039,0.01882971,102100.0,102090.0,1.92045023]
[1737939838900,0.01882971,102100.0,102090.0,1.06925023]
[1737939839104,0.01882971,102100.0,102090.0,1.04925023]
[1737939839312,0.01882971,102100.0,102090.0,1.06925023]
[1737939839799,0.01882971,102100.0,102090.0,1.04925023]
[1737939839936,0.01882971,102100.0,102090.0,0.89232123]
[1737939840135,0.01882971,102100.0,102090.0,0.79497394]
[1737939840346,0.16574371,102100.0,102090.0,0.75268888]
[1737939840958,0.16574371,102100.0,102090.0,0.7423147]
[1737939841400,0.16574371,102100.0,102090.0,0.7223147]
[1737939841648,0.16574371,102100.0,102090.0,0.7423147]
[1737939842002,0.16574371,102100.0,102090.0,0.7223147]
[1737939842215,0.16574371,102100.0,102090.0,0.7528574]
[1737939842438,0.16574371,102100.0,102090.0,0.78454033]
[1737939842793,0.16574371,102100.0,102090.0,0.77954033]
[1737939843209,0.16574371,102100.0,102090.0,0.78154033]
[1737939843952,0.16574371,102100.0,102090.0,0.75099763]
[1737939844387,0.16574371,102100.0,102090.0,0.7193147]
[1737939844969,0.01882971,102100.0,102090.0,0.7193147]
[1737939845136,0.01882971,102100.0,102090.0,0.8662437]
[1737939845693,0.01882971,102100.0,102090.0,0.7193147]
[1737939845694,0.16574371,102100.0,102090.0,0.7193147]
[1737939846176,0.16574371,102100.0,102090.0,0.5693147]
[1737939846934,0.16574371,102100.0,102090.0,0.66666199]
[1737939847141,0.16574371,102100.0,102090.0,0.5693147]
[1737939847354,0.16574371,102100.0,102090.0,0.5673147]
[1737939847970,0.16574371,102100.0,102090.0,0.56761143]
[1737939848947,0.01882971,102100.0,102090.0,0.71454043]
[1737939849147,0.01882971,102100.0,102090.0,0.81188772]
[1737939849420,0.16574371,102100.0,102090.0,0.66495872]
[1737939849605,0.16574371,102100.0,102090.0,0.56761143]
[1737939850849,0.26574371,102100.0,102090.0,0.56761143]
[1737939851096,0.363091,102100.0,102090.0,0.56761143]
[1737939851291,0.26574371,102100.0,102090.0,0.56761143]
[1737939851490,0.26574371,102100.0,102090.0,0.66495872]
[1737939852118,0.26574371,102100.0,102090.0,0.56761143]
[1737939852709,0.16574371,102100.0,102090.0,0.56761143]
[1737939857194,0.263091,102100.0,102090.0,0.56761143]
[1737939857395,0.286091,102100.0,102090.0,0.56761143]
[1737939859074,0.286091,102100.0,102090.0,0.11792852]
[1737939859230,0.368691,102100.0,102090.0,0.11792852]
[1737939860316,0.370691,102100.0,102090.0,0.11792852]
[1737939864165,0.520691,102100.0,102090.0,0.11792852]
[1737939864398,0.6461278,102100.0,102090.0,0.11792852]
[1737939864599,0.5461278,102100.0,102090.0,0.11792852]
[1737939866123,0.520691,102100.0,102090.0,0.11792852]
[1737939869020,0.265091,102100.0,102090.0,0.11792852]
[1737939869219,0.16774371,102100.0,102090.0,0.56761143]
[1737939871273,0.02082971,102100.0,102090.0,0.71454043]
[1737939871633,0.16774371,102100.0,102090.0,0.56761143]
[1737939871835,0.288091,102100.0,102090.0,0.56761143]
[1737939872044,0.388091,102100.0,102090.0,0.56761143]
[1737939872589,0.638091,102100.0,102090.0,0.11792852]
[1737939872940,0.538091,102100.0,102090.0,0.11792852]
[1737939873347,0.538091,102100.0,102090.0,0.56761143]
[1737939874978,0.59251496,102100.0,102090.0,0.45006543]
[1737939875211,0.59251496,102100.0,102080.0,4.6e-07]
[1737939875212,0.619929,102090.0,102080.0,4.6e-07]
[1737939875403,1.51906925,102090.0,102080.0,4.6e-07]
[1737939875603,0.872725,102080.0,102070.0,1.9e-07]
[1737939875817,1.406668,102070.0,102060.0,1.3e-07]
[1737939876058,0.79294825,102070.0,102060.0,1.3e-07]
[1737939876562,0.58878825,102070.0,102060.0,1.3e-07]
[1737939877235,0.59378825,102070.0,102060.0,1.3e-07]
[1737939877633,0.147015,102030.0,102020.0,0.4497687]
[1737939877844,0.147044,102010.0,102000.0,1.32088291]
[1737939878297,0.147044,102010.0,102000.0,0.44968291]
[1737939878298,0.170044,102010.0,102000.0,0.44968291]
[1737939878470,0.270044,102010.0,102000.0,0.44968291]
[1737939879121,0.270044,102010.0,102000.0,0.45017723]
[1737939879920,0.288584,102010.0,102000.0,0.45017723]
[1737939880671,0.300864,102010.0,102000.0,0.45017723]
[1737939880852,0.300864,102010.0,102000.0,0.00149432]
[1737939880853,0.400864,102010.0,102000.0,0.00149432]
[1737939881006,0.300864,102010.0,102000.0,0.00149432]
[1737939881812,0.300864,102010.0,102000.0,0.00049432]
[1737939882299,0.39821129,102010.0,102000.0,0.00049432]
[1737939883103,0.39821129,102010.0,102000.0,0.00079168]
[1737939883763,0.40021129,102010.0,102000.0,0.00079168]
[1737939884802,0.40021129,102010.0,102000.0,0.54239168]
[1737939886133,0.37721129,102010.0,102000.0,0.54239168]
[1737939886339,0.167584,102010.0,102000.0,0.00087747]
[1737939886536,0.167584,102010.0,102000.0,0.04717747]
[1737939886737,0.02054,102010.0,102000.0,0.22717747]
[1737939886938,0.02054,102010.0,102000.0,1.88438276]
[1737939887157,0.08540188,102040.0,102030.0,0.1384]
[1737939887520,0.23240288,102040.0,102030.0,0.1384]
[1737939887921,0.23240288,102040.0,102030.0,1.94564808]
[1737939887922,0.08540188,102040.0,102030.0,1.94564808]
[1737939888143,0.08540188,102040.0,102030.0,1.96564808]
[1737939888552,0.42834688,102060.0,102050.0,0.01]
[1737939888748,0.42834688,102060.0,102050.0,1.45818549]
[1737939888983,0.442945,102060.0,102050.0,1.41288579]
[1737939889192,0.56329229,102060.0,102050.0,0.54168579]
[1737939889598,1.26578029,102060.0,102050.0,0.54168579]
[1737939889802,0.54896129,102060.0,102050.0,0.54218011]
[1737939890007,0.342945,102060.0,102050.0,0.59639812]
[1737939890113,0.342945,102060.0,102050.0,0.54218011]
[1737939890322,0.56329229,102060.0,102050.0,0.54218011]
[1737939890523,0.71329229,102060.0,102050.0,0.54218011]
[1737939890956,0.71329229,102060.0,102050.0,0.48338611]
[1737939891192,2.27697229,102060.0,102050.0,3.2e-07]
[1737939891399,1.05797829,102060.0,102050.0,3.2e-07]
[1737939891610,0.77515485,102060.0,102050.0,3.2e-07]
[1737939891846,0.78015485,102060.0,102050.0,3.2e-07]
[1737939892314,0.77515485,102060.0,102050.0,3.2e-07]
[1737939892750,0.147029,102020.0,102010.0,0.42400832]
[1737939892962,0.28591629,102020.0,102010.0,0.42415667]
[1737939893179,0.38591629,102020.0,102010.0,0.42415667]
[1737939893381,0.165569,102020.0,102010.0,0.42415667]
[1737939893592,0.165569,102020.0,102010.0,0.42424246]
[1737939893798,0.165569,102020.0,102010.0,0.47750281]
[1737939894000,0.165569,102020.0,102010.0,0.43424246]
[1737939894205,0.167569,102020.0,102010.0,0.43424246]
[1737939894697,0.165569,102020.0,102010.0,0.43424246]
[1737939894901,0.167569,102020.0,102010.0,1.30544246]
[1737939895279,0.167569,102020.0,102010.0,1.29544246]
[1737939895438,0.167569,102020.0,102010.0,1.30544246]
[1737939895674,0.167569,102020.0,102010.0,1.3365952]
[1737939895872,0.167569,102020.0,102010.0,1.30544246]
[1737939896085,0.167569,102020.0,102010.0,1.30574003]
[1737939897046,0.165569,102020.0,102010.0,1.30574003]
[1737939897230,0.01854,102020.0,102010.0,1.79833132]
[1737939897393,0.01854,102020.0,102010.0,1.94307861]
[1737939898560,0.01854,102020.0,102010.0,1.94207861]
[1737939898762,0.165569,102020.0,102010.0,1.69768732]
[1737939898906,0.165569,102020.0,102010.0,1.68768732]
[1737939899104,0.165569,102020.0,102010.0,1.58034003]
[1737939899309,0.165569,102020.0,102010.0,1.60034003]
[1737939899541,0.165569,102020.0,102010.0,1.69768732]
[1737939899957,0.166569,102020.0,102010.0,1.70468732]
[1737939900155,0.166569,102020.0,102010.0,1.58734003]
[1737939900358,0.166569,102020.0,102010.0,1.60734003]
[1737939900801,0.166569,102020.0,102010.0,1.58734003]
[1737939901003,0.01954,102020.0,102010.0,1.85173132]
[1737939901653,0.166569,102020.0,102010.0,1.70468732]
[1737939901863,0.166569,102020.0,102010.0,1.68468732]
[1737939902059,0.166569,102020.0,102010.0,1.58734003]
[1737939902489,0.166569,102020.0,102010.0,2.09518388]
[1737939902490,0.01954,102020.0,102010.0,2.09518388]
[1737939902695,0.01954,102020.0,102010.0,2.11518388]
[1737939902904,0.342989,102050.0,102040.0,0.1346]
[1737939903215,0.342989,102050.0,102040.0,1.42989411]
[1737939903384,0.342989,102050.0,102040.0,1.5272414]
[1737939903589,0.342989,102050.0,102040.0,1.62458869]
[1737939904176,0.344989,102050.0,102040.0,1.42989411]
[1737939904388,0.344989,102050.0,102040.0,1.41989411]
[1737939904949,0.344989,102050.0,102040.0,1.42989411]
[1737939905152,0.002,102050.0,102040.0,1.8442424]
[1737939905724,0.0001417,102060.0,102050.0,0.03]
[1737939905894,0.0001417,102060.0,102050.0,1.23887379]
[1737939906090,0.0001417,102060.0,102050.0,2.10917996]
[1737939906322,0.0186817,102060.0,102050.0,2.14217996]
[1737939906520,0.0186817,102060.0,102050.0,1.93307469]
[1737939906724,0.0186817,102060.0,102050.0,1.92307469]
[1737939907165,0.0186817,102060.0,102050.0,1.94307469]
[1737939907597,0.0196817,102060.0,102050.0,1.95207469]
[1737939907805,0.0196817,102060.0,102050.0,2.13230166]
[1737939907935,0.0196817,102060.0,102050.0,1.96619639]
[1737939908536,0.0196817,102060.0,102050.0,1.94619639]
[1737939908748,0.0196817,102060.0,102050.0,1.96619639]
[1737939910054,0.0196817,102060.0,102050.0,1.95207469]
[1737939910463,0.0196817,102060.0,102050.0,1.93207469]
[1737939910636,0.0196817,102060.0,102050.0,1.94207469]
[1737939910846,0.0186817,102060.0,102050.0,1.94307469]
[1737939911205,0.0196817,102060.0,102050.0,1.95207469]
[1737939911467,0.1666537,102060.0,102050.0,1.61039411]
[1737939911688,0.1666537,102060.0,102050.0,1.75738011]
[1737939913065,0.0196817,102060.0,102050.0,1.8547274]
[1737939913212,0.0196817,102060.0,102050.0,1.96544065]
[1737939913415,0.0196817,102060.0,102050.0,1.8547274]
[1737939913632,0.0196817,102060.0,102050.0,2.06278794]
[1737939914658,0.0001415,102100.0,102090.0,0.01]
[1737939914873,0.00063582,102100.0,102090.0,1.80144988]
[1737939915074,0.00063582,102100.0,102090.0,1.8004704]
[1737939915312,0.00063582,102100.0,102090.0,1.7804704]
[1737939915514,0.14754982,102100.0,102090.0,1.87781769]
[1737939915715,0.14754982,102100.0,102090.0,1.6335414]
[1737939916095,0.14754982,102100.0,102090.0,1.3926414]
[1737939916295,0.14754982,102100.0,102090.0,1.4026414]
[1737939916542,0.14754982,102100.0,102090.0,1.29629411]
[1737939916738,0.26789711,102100.0,102090.0,0.42509411]
[1737939916916,0.70059711,102100.0,102090.0,0.42509411]
[1737939917116,0.70059711,102100.0,102090.0,0.001]
[1737939917437,0.269957,102070.0,102060.0,0.42409411]
[1737939917638,0.55000429,102070.0,102060.0,0.42409411]
[1737939918063,0.45000429,102070.0,102060.0,0.42409411]
[1737939918286,0.35000429,102070.0,102060.0,0.42409411]
[1737939918486,0.45000429,102070.0,102060.0,0.42409411]
[1737939918724,0.46854429,102070.0,102060.0,0.42409411]
[1737939919850,0.46854429,102070.0,102060.0,0.5214414]
[1737939920052,0.47154429,102070.0,102060.0,0.42409411]
[1737939920261,0.1,102060.0,102030.0,0.32602832]
[1737939920459,0.170001,102040.0,102030.0,0.32602832]
[1737939920665,0.26734829,102040.0,102030.0,0.32602832]
[1737939921219,0.28588829,102040.0,102030.0,0.32602832]
[1737939921777,0.51458829,102040.0,102030.0,3.5e-07]
[1737939922666,0.61458829,102040.0,102030.0,3.5e-07]
[1737939922869,0.51758829,102040.0,102030.0,3.5e-07]
[1737939923078,0.51458829,102040.0,102030.0,3.5e-07]
[1737939923289,0.53676485,102040.0,102030.0,3.5e-07]
[1737939923500,0.53976485,102040.0,102030.0,0.00100035]
[1737939923701,0.68461229,102040.0,102030.0,3.5e-07]
[1737939923955,0.53976485,102040.0,102030.0,3.5e-07]
[1737939924384,0.55968871,102040.0,102030.0,3.5e-07]
[1737939924603,0.320029,102020.0,102010.0,5.7e-07]
[1737939924743,0.47081285,102020.0,102010.0,5.7e-07]
[1737939924946,0.77081285,102020.0,102010.0,5.7e-07]
[1737939925266,0.87081285,102020.0,102010.0,5.7e-07]
[1737939926081,0.57081285,102020.0,102010.0,5.7e-07]
[1737939927096,0.57981285,102020.0,102010.0,0.00100057]
[1737939927301,0.45763629,102020.0,102010.0,0.00100057]
[1737939927747,0.55681285,102020.0,102010.0,0.00100057]
[1737939928108,0.53463629,102020.0,102010.0,0.00100057]
[1737939928311,0.43463629,102020.0,102010.0,0.00100057]
[1737939928514,0.55763629,102020.0,102010.0,0.00100057]
[1737939928744,0.45763629,102020.0,102010.0,0.00100057]
[1737939929391,0.45763629,102020.0,102010.0,0.54260057]
[1737939929643,0.55739629,102020.0,102010.0,0.54260057]
[1737939930025,0.65739629,102020.0,102010.0,0.54260057]
[1737939930262,0.55739629,102020.0,102010.0,0.54260057]
[1737939930690,0.45739629,102020.0,102010.0,0.54260057]
[1737939931128,0.45728863,102020.0,102010.0,0.54260057]
[1737939931333,0.45728863,102020.0,102010.0,0.54268636]
[1737939931334,0.39491629,102020.0,102010.0,0.54268636]
[1737939931458,0.29491629,102020.0,102010.0,0.59698473]
[1737939931666,0.29491629,102020.0,102010.0,0.54268636]
[1737939932438,0.31431308,102020.0,102010.0,0.54268636]
[1737939932869,0.41431308,102020.0,102010.0,0.54268636]
[1737939933086,0.31431308,102020.0,102010.0,0.54268636]
[1737939933294,0.76431308,102020.0,102010.0,0.54268636]
[1737939933472,0.76431308,102020.0,102010.0,0.46426236]
[1737939933722,0.76431308,102020.0,102010.0,0.44465636]
[1737939933933,0.76431308,102020.0,102010.0,0.44495372]
[1737939934146,0.76431308,102020.0,102010.0,0.00029736]
[1737939935071,1.24059608,102020.0,102010.0,3.6e-07]
[1737939935292,0.76709285,102020.0,102010.0,3.6e-07]
[1737939936116,0.54409285,102020.0,102010.0,0.44457093]
[1737939936311,0.52191629,102020.0,102010.0,0.44457093]
[1737939937045,0.37191629,102020.0,102010.0,0.44457093]
[1737939938512,0.39491629,102020.0,102010.0,0.44457093]
[1737939939116,0.64491629,102020.0,102010.0,0.44457093]
[1737939939532,0.54491629,102020.0,102010.0,0.44457093]
[1737939939882,0.83591629,102020.0,102010.0,0.42496493]
[1737939940091,0.83591629,102020.0,102010.0,0.40535893]
[1737939940477,0.74276168,102020.0,102010.0,0.40635893]
[1737939940712,0.74276168,102020.0,102010.0,0.32793493]
[1737939941034,0.91956568,102020.0,102010.0,0.32793493]
[1737939941146,0.91956568,102020.0,102010.0,0.001]
[1737939941349,0.520044,102010.0,102000.0,0.00029736]
[1737939941582,0.63593129,102010.0,102000.0,0.00029736]
[1737939943033,0.86813529,102010.0,102000.0,3.6e-07]
[1737939943241,0.53593129,102010.0,102000.0,3.6e-07]
[1737939943988,0.63593129,102010.0,102000.0,3.6e-07]
[1737939945813,0.64393129,102010.0,102000.0,0.00100036]
[1737939946504,0.54393129,102010.0,102000.0,0.00100036]
[1737939946725,0.44393129,102010.0,102000.0,0.00100036]
[1737939946895,0.54393129,102010.0,102000.0,0.00100036]
[1737939948103,1.16820829,102010.0,102000.0,0.00100036]
[1737939948558,1.13208729,102010.0,102000.0,3.6e-07]
[1737939948726,0.64393129,102010.0,102000.0,3.6e-07]
[1737939949276,0.64380092,102010.0,102000.0,3.6e-07]
[1737939949749,0.66645547,102010.0,102000.0,3.6e-07]
[1737939949969,0.64380092,102010.0,102000.0,3.6e-07]
[1737939950169,0.66363535,102010.0,102000.0,3.6e-07]
[1737939950667,0.6862899,102010.0,102000.0,3.6e-07]
[1737939951057,0.66363535,102010.0,102000.0,3.6e-07]
[1737939951243,0.46363535,102010.0,102000.0,3.6e-07]
[1737939951639,0.56363535,102010.0,102000.0,3.6e-07]
[1737939951838,0.56339027,102010.0,102000.0,3.6e-07]
[1737939952579,0.46339027,102010.0,102000.0,3.6e-07]
[1737939952986,0.76339027,102010.0,102000.0,3.6e-07]
[1737939954454,0.86339027,102010.0,102000.0,3.6e-07]
[1737939954628,0.46339027,102010.0,102000.0,3.6e-07]
[1737939955141,0.46339027,102010.0,102000.0,0.32702108]
[1737939955142,0.52055584,102010.0,102000.0,0.32702108]
[1737939955495,0.273584,102010.0,102000.0,0.32702108]
[1737939956357,0.273584,102010.0,102000.0,0.44732319]
[1737939956567,0.273584,102010.0,102000.0,0.41012108]
[1737939958537,0.273584,102010.0,102000.0,0.41041865]
[1737939958755,0.2737257,102010.0,102000.0,0.41041865]
[1737939958978,0.39407299,102010.0,102000.0,0.41041865]
[1737939959733,0.45591299,102010.0,102000.0,0.32731865]
[1737939959947,0.55591299,102010.0,102000.0,0.32731865]
[1737939960173,0.55591299,102010.0,102000.0,0.28810265]
[1737939960363,0.55591299,102010.0,102000.0,0.22927865]
[1737939961763,0.55591299,102010.0,102000.0,0.19006265]
[1737939961978,0.320073,101990.0,101980.0,0.15045345]
[1737939962184,0.63451029,101990.0,101980.0,0.05254178]
[1737939962388,0.77179029,101990.0,101980.0,0.00014833]
[1737939962614,0.79444484,101990.0,101980.0,0.00014833]
[1737939962813,0.673,101980.0,101970.0,0.00029694]
[1737939963049,1.65962184,101980.0,101970.0,0.00029694]
[1737939963249,1.51449284,101980.0,101970.0,9.4e-07]
[1737939963469,0.99896884,101980.0,101970.0,9.4e-07]
[1737939963677,0.87631429,101980.0,101970.0,9.4e-07]
[1737939964026,0.54777429,101980.0,101970.0,9.4e-07]
[1737939964225,0.52197429,101980.0,101970.0,0.00100094]
[1737939964436,0.27197429,101980.0,101970.0,0.54268673]
[1737939964662,0.37197429,101980.0,101970.0,0.54268673]
[1737939964858,0.174627,101980.0,101970.0,0.55268673]
[1737939965061,0.02754,101980.0,101970.0,0.7826085]
[1737939965235,0.02754,101980.0,101970.0,1.00805579]
[1737939965435,0.02754,101980.0,101970.0,1.02705579]
[1737939965436,0.01854,101980.0,101970.0,1.02705579]
[1737939965643,0.01854,101980.0,101970.0,1.89825579]
[1737939965837,0.02554,101980.0,101970.0,1.89925579]
[1737939966264,0.251623,101980.0,101970.0,1.89825579]
[1737939966463,0.251623,101980.0,101970.0,1.55098673]
[1737939966691,0.47197029,101980.0,101970.0,0.67178673]
[1737939966914,0.47197029,101980.0,101970.0,0.58868673]
[1737939967451,0.52197029,101980.0,101970.0,0.00200094]
[1737939967661,0.62197029,101980.0,101970.0,0.00200094]
[1737939968494,0.57197029,101980.0,101970.0,0.00200094]
[1737939968710,0.251623,101980.0,101970.0,0.59860094]
[1737939968914,0.104536,101980.0,101970.0,1.09623602]
[1737939969119,0.104536,101980.0,101970.0,2.06478331]
[1737939969322,0.104536,101980.0,101970.0,2.06278331]
[1737939969497,0.251623,101980.0,101970.0,1.91568131]
[1737939969734,0.105536,101980.0,101970.0,2.06278331]
[1737939969945,0.251623,101980.0,101970.0,1.78833402]
[1737939970056,0.251623,101980.0,101970.0,1.79833402]
[1737939970268,0.251623,101980.0,101970.0,1.80033402]
[1737939970472,0.251623,101980.0,101970.0,1.96743602]
[1737939970990,0.251623,101980.0,101970.0,1.80033402]
[1737939971176,0.251623,101980.0,101970.0,1.82033402]
[1737939971398,0.251623,101980.0,101970.0,1.96743602]
[1737939971624,0.251623,101980.0,101970.0,1.82033402]
[1737939971826,0.251623,101980.0,101970.0,1.80033402]
[1737939972002,0.251623,101980.0,101970.0,2.06478331]
[1737939972003,0.104536,101980.0,101970.0,2.06478331]
[1737939972837,0.251623,101980.0,101970.0,1.80033402]
[1737939973157,0.251623,101980.0,101970.0,1.55298673]
[1737939973527,0.165627,101980.0,101970.0,1.55298673]
[1737939973722,0.165627,101980.0,101970.0,0.84888873]
[1737939973967,0.01854,101980.0,101970.0,0.94623602]
[1737939974226,0.165627,101980.0,101970.0,1.04358331]
[1737939974435,0.165627,101980.0,101970.0,0.68178673]
[1737939975528,0.165627,101980.0,101970.0,0.67978673]
[1737939975738,0.165627,101980.0,101970.0,0.69978673]
[1737939976180,0.166627,101980.0,101970.0,0.67978673]
[1737939976412,0.166627,101980.0,101970.0,0.66978673]
[1737939976619,0.43597429,101980.0,101970.0,0.54168673]
[1737939976829,0.43597429,101980.0,101970.0,0.54368673]
[1737939977042,0.53597429,101980.0,101970.0,0.54368673]
[1737939978315,0.53597429,101980.0,101970.0,9.4e-07]
[1737939978434,0.43697429,101980.0,101970.0,9.4e-07]
[1737939978850,0.170116,101960.0,101950.0,0.48274982]
[1737939979065,0.52013,101950.0,101940.0,0.00029715]
[1737939979263,0.61747729,101950.0,101940.0,0.00029715]
[1737939980107,0.51747729,101950.0,101940.0,0.00029715]
[1737939980486,0.53601729,101950.0,101940.0,0.00079196]
[1737939981313,0.54813729,101950.0,101940.0,0.00079196]
[1737939981513,0.54913729,101950.0,101940.0,0.00079196]
[1737939981679,0.54813729,101950.0,101940.0,0.00079196]
[1737939981880,0.54813729,101950.0,101940.0,0.00513278]
[1737939982102,0.54001729,101950.0,101940.0,0.00079196]
[1737939982309,0.55213729,101950.0,101940.0,0.00079196]
[1737939982778,0.55213729,101950.0,101940.0,0.48354178]
[1737939983306,0.55213729,101950.0,101940.0,0.48274982]
[1737939983307,0.45213729,101950.0,101940.0,0.48274982]
[1737939983517,0.45213729,101950.0,101920.0,0.00029736]
[1737939983518,0.170159,101930.0,101920.0,0.46422014]
[1737939983745,0.28604629,101930.0,101920.0,0.46436861]
[1737939983936,0.28604629,101930.0,101920.0,0.4644544]
[1737939984886,0.165699,101930.0,101920.0,0.53627951]
[1737939985878,0.165699,101930.0,101920.0,0.4764544]
[1737939986084,0.28604629,101930.0,101920.0,0.4644544]
[1737939986527,0.38704629,101930.0,101920.0,0.4644544]
[1737939987948,0.38604629,101930.0,101920.0,0.4644544]
[1737939988150,0.39004629,101930.0,101920.0,0.4644544]
[1737939989741,0.41424741,101930.0,101920.0,0.4644544]
[1737939990151,0.39004629,101930.0,101920.0,0.4644544]
[1737939993308,0.42552474,101930.0,101920.0,0.4644544]
[1737939993511,0.39004629,101930.0,101920.0,0.46436861]
[1737939994937,0.39004629,101930.0,101920.0,0.00044583]
[1737939995165,0.43883518,101930.0,101920.0,0.00044583]
[1737939995680,0.41463406,101930.0,101920.0,0.00044583]
[1737939996083,0.39004629,101930.0,101920.0,0.00044583]
[1737939996782,0.29004629,101930.0,101920.0,0.00044583]
[1737939997203,0.39004629,101930.0,101920.0,0.00044583]
[1737939997408,0.40204629,101930.0,101920.0,0.00044583]
[1737939998074,0.50204629,101930.0,101920.0,0.00044583]
[1737940000308,0.50204629,101930.0,101920.0,8.3e-07]
[1737940000309,0.55204629,101930.0,101920.0,8.3e-07]
[1737940000552,0.57624741,101930.0,101920.0,8.3e-07]
[1737940000975,0.60083518,101930.0,101920.0,8.3e-07]
[1737940001385,0.57663406,101930.0,101920.0,8.3e-07]
[1737940001816,0.57663406,101930.0,101910.0,0.36609534]
[1737940001817,0.420174,101920.0,101910.0,0.36609534]
[1737940002019,0.520188,101910.0,101900.0,0.05029757]
[1737940002222,0.320203,101900.0,101890.0,5.1e-07]
[1737940002457,0.89445029,101900.0,101890.0,5.1e-07]
[1737940002677,0.81865141,101900.0,101890.0,1e-08]
[1737940002892,0.84323918,101900.0,101890.0,1e-08]
[1737940003106,0.90211918,101900.0,101890.0,1e-08]
[1737940003734,0.92065918,101900.0,101890.0,1e-08]
[1737940004585,0.97187029,101900.0,101890.0,1e-08]
[1737940004815,0.91299029,101900.0,101890.0,1e-08]
[1737940005198,0.97077918,101900.0,101890.0,1e-08]
[1737940005778,0.94657806,101900.0,101890.0,1e-08]
[1737940006395,0.123,101870.0,101860.0,0.36557562]
[1737940006643,0.14726,101860.0,101850.0,0.1525]
[1737940006916,0.14726,101860.0,101850.0,0.15264853]
[1737940007422,0.14726,101860.0,101850.0,0.12264853]
[1737940007630,0.17026,101860.0,101850.0,0.12264853]
[1737940007871,0.1888,101860.0,101850.0,0.12264853]
[1737940008316,0.21338777,101860.0,101850.0,0.12264853]
[1737940008748,0.1888,101860.0,101850.0,0.12264853]
[1737940008951,0.1888,101860.0,101850.0,0.12145477]
[1737940009159,0.21338777,101860.0,101850.0,0.12145477]
[1737940009584,0.1888,101860.0,101850.0,0.12145477]
[1737940010013,0.21338777,101860.0,101850.0,0.13660025]
[1737940010243,0.1888,101860.0,101850.0,0.12145477]
[1737940010451,0.21338777,101860.0,101850.0,0.12145477]
[1737940010865,0.41073506,101860.0,101850.0,0.12145477]
[1737940011069,0.51073506,101860.0,101850.0,0.00014853]
[1737940011281,0.56073506,101860.0,101850.0,0.00435692]
[1737940011494,0.78048306,101860.0,101850.0,5.3e-07]
[1737940011709,0.56073506,101860.0,101850.0,0.00435692]
[1737940011911,0.92826506,101860.0,101850.0,5.3e-07]
[1737940012114,0.58493618,101860.0,101850.0,5.3e-07]
[1737940012328,0.58493618,101860.0,101850.0,9.2e-07]
[1737940012535,0.170289,101840.0,101830.0,0.42874436]
[1737940012737,0.28617629,101840.0,101830.0,0.06366413]
[1737940012950,0.31259732,101840.0,101830.0,0.06366413]
[1737940013454,0.31264159,101840.0,101830.0,0.06366413]
[1737940013622,0.31264159,101840.0,101830.0,0.11768782]
[1737940014018,0.28622056,101840.0,101830.0,0.11768782]
[1737940014440,0.38622056,101840.0,101830.0,0.11768782]
[1737940014615,0.39785629,101840.0,101830.0,0.11764355]
[1737940014820,0.40085629,101840.0,101830.0,0.11764355]
[1737940015017,0.30085629,101840.0,101830.0,0.11764355]
[1737940015339,0.40085629,101840.0,101830.0,0.11764355]
[1737940015536,0.39785629,101840.0,101830.0,0.11764355]
[1737940015739,0.39785629,101840.0,101830.0,0.06361986]
[1737940015938,0.37485629,101840.0,101830.0,0.01601986]